bitfinex/quotes_SOLUSD_20220311
["timestamp","ask_amount","ask_price","bid_price","bid_amount"]
[1646985187595,60.98246109,82.474,82.397,23.7255]
[1646985187791,60.98246109,82.474,82.398,6.0]
[1646985189194,18.1965,82.47,82.4,18.194]
[1646985189397,18.1965,82.47,82.401,6.0]
[1646985189996,23.1841,82.469,82.401,6.0]
[1646985195608,21.6841,82.469,82.401,6.0]
[1646985200710,60.98246109,82.474,82.401,6.0]
[1646985200910,60.98246109,82.474,82.402,58.60128537]
[1646985201110,60.98246109,82.474,82.403,6.0]
[1646985201310,60.98246109,82.474,82.403,61.55637246]
[1646985201510,60.98246109,82.474,82.404,41.86410817]
[1646985201715,60.98246109,82.474,82.405,6.0]
[1646985201911,60.98246109,82.474,82.405,75.2302799]
[1646985202111,60.98246109,82.474,82.406,28.19020073]
[1646985202311,60.98246109,82.474,82.407,6.0]
[1646985202511,60.98246109,82.474,82.407,33.36617173]
[1646985202711,60.98246109,82.474,82.408,28.19020073]
[1646985202911,22.5318,82.473,82.409,6.0]
[1646985203112,22.5318,82.473,82.409,33.36617173]
[1646985203412,22.5318,82.473,82.41,27.36617173]
[1646985205014,18.1944,82.47,82.409,6.0]
[1646985207716,22.5318,82.473,82.409,6.0]
[1646985208117,22.5318,82.473,82.409,33.36617173]
[1646985212124,18.1944,82.47,82.409,33.36617173]
[1646985213824,22.5318,82.473,82.409,33.36617173]
[1646985214523,22.5318,82.473,82.41,28.18968073]
[1646985214924,22.5318,82.473,82.411,27.36088507]
[1646985218355,18.1922,82.48,82.412,121.4]
[1646985218656,1.6728369,82.514,82.414,121.4]
[1646985218857,1.6728369,82.514,82.415,6.0]
[1646985219057,1.6728369,82.516,82.416,121.4]
[1646985219257,1.6728369,82.516,82.42,18.1848]
[1646985219458,18.1856,82.51,82.421,54.1037]
[1646985219863,18.1856,82.51,82.422,16.72494462]
[1646985220067,18.1856,82.51,82.423,6.0]
[1646985220260,18.1856,82.51,82.423,33.36088507]
[1646985220461,18.1856,82.51,82.424,27.36088507]
[1646985220660,24.1968,82.509,82.425,6.0]
[1646985220960,24.1968,82.509,82.426,27.36088507]
[1646985221159,24.1968,82.509,82.43,18.1855]
[1646985221364,24.1968,82.509,82.431,6.0]
[1646985221560,24.1968,82.509,82.431,33.36088507]
[1646985221760,24.1968,82.509,82.432,27.36088507]
[1646985221962,24.1968,82.509,82.433,30.0728]
[1646985222365,24.1968,82.509,82.434,27.36088507]
[1646985222762,24.1968,82.509,82.434,55.54917913]
[1646985223261,24.1968,82.509,82.435,27.36088507]
[1646985224063,24.1968,82.509,82.435,55.54917913]
[1646985224463,24.1968,82.509,82.436,27.36088507]
[1646985224762,24.1968,82.509,82.436,55.54917913]
[1646985225164,24.1968,82.509,82.437,27.36088507]
[1646985226464,24.1968,82.509,82.438,127.4]
[1646985226865,24.1968,82.509,82.439,55.54917913]
[1646985227065,24.1968,82.509,82.44,6.0]
[1646985227266,24.1968,82.509,82.44,33.36088507]
[1646985227467,24.1968,82.509,82.441,27.36088507]
[1646985227664,24.1968,82.509,82.442,6.0]
[1646985228065,24.1968,82.509,82.443,51.01548507]
[1646985228264,24.1968,82.509,82.444,6.0]
[1646985233971,42.8056,82.509,82.444,6.0]
[1646985234171,24.1968,82.509,82.444,6.0]
[1646985234772,18.1878,82.5,82.444,6.0]
[1646985235577,24.8373,82.499,82.444,6.0]
[1646985236373,24.8373,82.499,82.443,23.6546]
[1646985236575,18.1904,82.49,82.444,6.0]
[1646985236872,50.43358118,82.489,82.443,23.6546]
[1646985237072,50.43358118,82.489,82.36,140.37321369]
[1646985237275,53.47806075,82.489,82.36,125.83321369]
[1646985237475,3.04447957,82.488,82.4,27.36088507]
[1646985237876,24.0483,82.487,82.422,24.0036]
[1646985238371,3.04447957,82.486,82.422,24.0036]
[1646985240078,18.1922,82.48,82.422,24.0036]
[1646985240274,3.04447957,82.486,82.422,24.0036]
[1646985242078,18.1947,82.47,82.422,24.0036]
[1646985242278,3.04447957,82.486,82.422,24.0036]
[1646985244178,18.1949,82.47,82.422,24.0036]
[1646985244779,3.04447957,82.486,82.4,27.36088507]
[1646985244980,3.04447957,82.486,82.401,6.0]
[1646985245179,3.04447957,82.486,82.391,30.80543173]
[1646985245383,3.04447957,82.486,82.392,38.45495764]
[1646985245581,3.04447957,82.486,82.393,6.0]
[1646985245780,3.04447957,82.486,82.394,13.67935764]
[1646985245981,3.04447957,82.486,82.395,6.0]
[1646985246180,18.1944,82.47,82.4,18.1944]
[1646985246381,18.1944,82.47,82.401,6.0]
[1646985247083,22.765,82.469,82.402,23.9222]
[1646985249990,18.1967,82.46,82.402,23.9222]
[1646985250192,53.60338724,82.459,82.402,23.9222]
[1646985250789,22.5908,82.458,82.402,23.9222]
[1646985251309,18.1988,82.45,82.402,23.9222]
[1646985254817,22.5908,82.458,82.402,23.9222]
[1646985274041,53.60338724,82.459,82.402,23.9222]
[1646985274535,53.60338724,82.459,82.403,6.0]
[1646985282345,53.60338724,82.459,82.402,23.9222]
[1646985283546,22.8525,82.458,82.402,23.9222]
[1646985285171,53.60338724,82.459,82.402,23.9222]
[1646985285772,20.76932669,82.492,82.403,151.58921797]
[1646985285972,1.6728369,82.505,82.404,6.0]
[1646985286174,1.6728369,82.51,82.405,121.4]
[1646985286371,19.8601369,82.51,82.406,6.0]
[1646985286573,18.1873,82.51,82.407,121.4]
[1646985286774,56.00732033,82.509,82.408,6.0]
[1646985286972,56.00732033,82.509,82.409,121.4]
[1646985287174,56.00732033,82.509,82.41,6.0]
[1646985287373,56.00732033,82.509,82.411,121.4]
[1646985287671,18.1877,82.5,82.413,121.4]
[1646985287871,18.1877,82.5,82.414,6.0]
[1646985288272,18.1877,82.5,82.415,135.07652331]
[1646985288471,18.1877,82.5,82.416,6.0]
[1646985288771,18.1877,82.5,82.42,18.1873]
[1646985288971,18.1877,82.5,82.421,28.5651]
[1646985289373,18.1877,82.5,82.422,27.1447384]
[1646985289571,18.1877,82.5,82.423,6.0]
[1646985289971,18.1877,82.5,82.423,33.1447384]
[1646985290172,18.1877,82.5,82.43,18.1875]
[1646985290372,18.1877,82.5,82.431,6.0]
[1646985290771,18.1904,82.49,82.431,6.0]
[1646985290972,18.1904,82.49,82.425,6.0]
[1646985292877,18.1878,82.5,82.425,6.0]
[1646985293380,18.1878,82.5,82.425,33.1447384]
[1646985293576,24.0498,82.508,82.43,18.1878]
[1646985293779,24.0498,82.508,82.431,6.0]
[1646985294177,18.1877,82.5,82.431,6.0]
[1646985295578,18.1877,82.5,82.43,18.1878]
[1646985295980,18.1877,82.5,82.431,6.0]
[1646985299485,18.1877,82.5,82.43,18.1878]
[1646985299982,24.0498,82.508,82.424,23.6232]
[1646985300186,24.0498,82.508,82.425,6.0]
[1646985300386,27.09427957,82.508,82.424,23.6232]
[1646985301189,18.1925,82.48,82.424,23.6232]
[1646985301388,61.28656106,82.479,82.424,23.6232]
[1646985308299,60.28656106,82.479,82.424,23.6232]
[1646985310609,18.1971,82.46,82.424,23.6232]
[1646985310807,62.7926084,82.459,82.424,23.6232]
[1646985312007,62.7926084,82.459,82.4,18.1943]
[1646985313007,62.7926084,82.459,82.401,24.5748]
[1646985315011,18.1992,82.45,82.401,24.5748]
[1646985316717,121.4,82.458,82.384,23.2683]
[1646985316914,144.6896,82.458,82.384,23.2683]
[1646985317114,3.04447957,82.457,82.384,23.2683]
[1646985317715,3.04447957,82.457,82.377,24.1643]
[1646985317916,121.4,82.456,82.377,24.1643]
[1646985318318,3.04447957,82.455,82.377,24.1643]
[1646985318521,121.4,82.449,82.377,24.1643]
[1646985318936,3.04447957,82.448,82.356,23.8379]
[1646985319135,3.04447957,82.448,82.357,24.1643]
[1646985319136,121.4,82.445,82.357,24.1643]
[1646985319336,14.54,82.44,82.357,37.83857158]
[1646985319739,14.54,82.44,82.357,24.1643]
[1646985319940,17.58447957,82.44,82.357,24.1643]
[1646985320143,18.2081,82.41,82.357,24.1643]
[1646985320341,64.47746854,82.409,82.357,24.1643]
[1646985320640,64.47746854,82.409,82.342,26.97071173]
[1646985321040,64.47746854,82.409,82.332,23.99300091]
[1646985321242,18.2158,82.38,82.332,23.99300091]
[1646985321441,61.25273428,82.379,82.321,20.36727387]
[1646985322241,61.25273428,82.379,82.32,13.66374563]
[1646985322643,61.25273428,82.379,82.301,23.99300091]
[1646985322941,61.25273428,82.379,82.302,58.99056735]
[1646985323342,61.25273428,82.379,82.303,37.65846826]
[1646985323749,61.25273428,82.379,82.304,13.66546735]
[1646985324245,61.25273428,82.379,82.305,35.60951242]
[1646985324649,61.25273428,82.379,82.306,13.66546735]
[1646985325050,61.25273428,82.379,82.307,13.66546735]
[1646985325445,61.25273428,82.379,82.306,23.99300091]
[1646985325846,61.25273428,82.379,82.307,13.63043]
[1646985327149,61.25273428,82.379,82.306,23.99300091]
[1646985328151,61.25273428,82.379,82.302,45.3251]
[1646985330761,61.25273428,82.379,82.303,13.60637204]
[1646985330959,61.25273428,82.379,82.304,6.0]
[1646985331160,61.25273428,82.379,82.304,29.99300091]
[1646985331460,61.25273428,82.379,82.305,23.99300091]
[1646985333661,61.25273428,82.379,82.306,121.4]
[1646985334862,61.25273428,82.379,82.305,23.99300091]
[1646985335062,61.25273428,82.379,82.306,6.0]
[1646985335964,61.25273428,82.379,82.305,23.99300091]
[1646985336565,61.25273428,82.379,82.302,45.3251]
[1646985337464,18.2188,82.37,82.302,45.3251]
[1646985338064,61.25273428,82.379,82.302,45.3251]
[1646985338565,61.25273428,82.379,82.302,69.31810091]
[1646985338764,61.25273428,82.379,82.303,6.0]
[1646985338965,61.25273428,82.379,82.302,91.26214598]
[1646985339167,61.25273428,82.379,82.305,121.4]
[1646985339567,61.25273428,82.379,82.31,18.2135]
[1646985342873,61.25273428,82.379,82.302,45.3251]
[1646985343073,61.25273428,82.379,82.303,6.0]
[1646985347494,61.25273428,82.379,82.304,3.04447957]
[1646985347702,61.25273428,82.379,82.305,6.0]
[1646985347893,61.25273428,82.379,82.306,121.4]
[1646985348096,61.25273428,82.379,82.311,121.4]
[1646985348292,61.25273428,82.379,82.312,6.0]
[1646985348693,61.25273428,82.379,82.314,121.4]
[1646985348892,61.25273428,82.379,82.315,6.0]
[1646985349094,61.25273428,82.379,82.316,121.4]
[1646985349294,61.25273428,82.379,82.317,6.0]
[1646985352095,61.25273428,82.379,82.318,3.04447957]
[1646985352294,61.25273428,82.379,82.319,6.0]
[1646985353296,18.2067,82.42,82.317,6.0]
[1646985353498,18.2067,82.42,82.32,3.04447957]
[1646985353696,18.2067,82.42,82.321,6.0]
[1646985354098,18.2067,82.42,82.322,3.04447957]
[1646985354297,56.33873214,82.419,82.323,6.0]
[1646985354698,56.33873214,82.419,82.325,121.4]
[1646985354898,56.33873214,82.419,82.326,6.0]
[1646985355999,23.8445,82.418,82.326,6.0]
[1646985357503,52.44289009,82.418,82.326,6.0]
[1646985357704,52.44289009,82.418,82.325,6.0]
[1646985358905,18.209,82.41,82.325,6.0]
[1646985360007,52.44289009,82.418,82.325,127.4]
[1646985360204,3.04447957,82.409,82.325,6.0]
[1646985362008,3.04447957,82.409,82.325,127.4]
[1646985362213,23.8445,82.418,82.325,127.4]
[1646985362612,23.8445,82.418,82.327,121.4]
[1646985362810,23.8445,82.418,82.34,18.2061]
[1646985363110,3.04447957,82.417,82.341,6.0]
[1646985363509,3.04447957,82.417,82.342,47.7665]
[1646985363711,3.04447957,82.417,82.343,6.0]
[1646985365212,3.04447957,82.417,82.35,18.2061]
[1646985365614,31.64286966,82.417,82.35,18.2061]
[1646985369217,3.04447957,82.416,82.35,18.2061]
[1646985369617,23.55736505,82.415,82.35,18.2061]
[1646985377045,3.04447957,82.414,82.35,18.2061]
[1646985379348,3.04447957,82.414,82.351,13.68618446]
[1646985380148,3.04447957,82.414,82.352,24.3291]
[1646985383353,31.64286966,82.414,82.352,24.3291]
[1646985383853,3.04447957,82.413,82.352,24.3291]
[1646985388356,18.2087,82.41,82.352,24.3291]
[1646985388860,31.64286966,82.409,82.352,24.3291]
[1646985389258,31.64286966,82.408,82.352,24.3291]
[1646985389859,3.04447957,82.407,82.352,24.3291]
[1646985390058,62.36794061,82.406,82.352,24.3291]
[1646985395965,18.2105,82.4,82.352,24.3291]
[1646985396165,3.04447957,82.405,82.342,23.1986]
[1646985396365,3.04447957,82.399,82.342,23.1986]
[1646985396765,18.26934171,82.399,82.342,23.1986]
[1646985396964,41.68209016,82.399,82.342,23.1986]
[1646985397165,58.10721748,82.379,82.342,23.1986]
[1646985402068,58.10721748,82.379,82.343,24.2941]
[1646985402868,23.1163,82.397,82.343,24.2941]
[1646985403876,58.22270182,82.396,82.343,24.2941]
[1646985415401,3.04447957,82.395,82.343,24.2941]
[1646985421416,58.22270182,82.396,82.343,24.2941]
[1646985432320,3.04447957,82.395,82.343,24.2941]
[1646985437528,58.22270182,82.396,82.344,121.4]
[1646985437727,3.04447957,82.426,82.344,135.09671412]
[1646985437930,3.04447957,82.426,82.345,6.0]
[1646985438128,3.04447957,82.426,82.346,121.4]
[1646985438329,3.04447957,82.426,82.347,6.0]
[1646985438528,3.04447957,82.426,82.348,13.69671412]
[1646985438732,53.20602215,82.425,82.349,127.4]
[1646985438956,53.20602215,82.425,82.35,135.09671412]
[1646985439160,3.04447957,82.424,82.351,6.0]
[1646985439358,3.04447957,82.424,82.351,13.69671412]
[1646985439659,53.20602215,82.425,82.352,127.4]
[1646985440160,53.20602215,82.425,82.353,13.69671412]
[1646985440359,53.20602215,82.425,82.354,127.4]
[1646985440565,53.20602215,82.425,82.355,13.69671412]
[1646985440759,53.20602215,82.425,82.356,127.4]
[1646985441160,53.20602215,82.425,82.361,121.4]
[1646985441369,53.20602215,82.425,82.362,6.0]
[1646985441562,53.20602215,82.425,82.363,121.4]
[1646985441760,53.20602215,82.425,82.364,6.0]
[1646985441962,53.20602215,82.425,82.365,121.4]
[1646985442262,3.04447957,82.435,82.366,6.0]
[1646985442467,3.04447957,82.444,82.37,139.6007]
[1646985442663,6.60657957,82.444,82.371,6.0]
[1646985442865,3.5621,82.444,82.371,30.40197224]
[1646985443068,3.5621,82.444,82.373,61.02]
[1646985443264,64.84773411,82.443,82.378,121.4]
[1646985443465,64.84773411,82.443,82.379,6.0]
[1646985443866,64.84773411,82.443,82.381,121.4]
[1646985444066,64.84773411,82.443,82.382,6.0]
[1646985449375,64.84773411,82.443,82.38,24.8411]
[1646985449578,64.84773411,82.443,82.381,6.0]
[1646985449774,64.84773411,82.443,82.38,24.8411]
[1646985450275,67.89221368,82.443,82.38,24.8411]
[1646985450475,87.1152612,82.443,82.38,24.8411]
[1646985451075,18.2009,82.44,82.38,24.8411]
[1646985451475,28.15119009,82.439,82.38,24.8411]
[1646985452975,34.96119009,82.439,82.38,24.8411]
[1646985453175,18.2033,82.43,82.38,24.8411]
[1646985453376,50.98346058,82.429,82.38,24.8411]
[1646985453778,77.40800482,82.429,82.38,24.8411]
[1646985453974,28.15119009,82.428,82.38,24.8411]
[1646985455078,18.2052,82.42,82.38,24.8411]
[1646985458079,60.0,82.419,82.35,18.2044]
[1646985458281,26.42454424,82.419,82.32,12.67263372]
[1646985458483,30.27957113,82.419,82.338,6.0]
[1646985458685,30.27957113,82.418,82.32,12.67263372]
[1646985459081,44.27295276,82.418,82.32,12.67263372]
[1646985459279,65.95807583,82.416,82.32,134.07263372]
[1646985459480,18.2097,82.4,82.32,152.28373372]
[1646985459782,61.13242083,82.399,82.32,152.28373372]
[1646985459982,87.55696507,82.399,82.321,6.0]
[1646985460183,87.55696507,82.399,82.321,19.65269826]
[1646985460584,18.2129,82.39,82.32,30.88373372]
[1646985461083,22.5249,82.398,82.32,30.88373372]
[1646985461287,22.5249,82.398,82.321,6.0]
[1646985462084,52.59548182,82.398,82.321,6.0]
[1646985462687,22.5249,82.398,82.321,6.0]
[1646985463289,22.5249,82.398,82.323,121.4]
[1646985463488,22.5249,82.398,82.324,6.0]
[1646985463889,22.5249,82.398,82.326,121.4]
[1646985464089,22.5249,82.398,82.33,139.6078]
[1646985464286,22.5249,82.398,82.331,6.0]
[1646985465209,22.5249,82.398,82.332,23.3903]
[1646985465410,22.5249,82.398,82.333,6.0]
[1646985470010,61.13242083,82.399,82.333,127.4]
[1646985470212,61.13242083,82.399,82.34,139.6068]
[1646985470414,61.13242083,82.399,82.34,121.4]
[1646985470812,61.13242083,82.399,82.333,6.0]
[1646985471813,61.13242083,82.399,82.332,23.3903]
[1646985472013,30.07058182,82.398,82.333,6.0]
[1646985472513,30.07058182,82.398,82.332,23.3903]
[1646985472714,61.13242083,82.399,82.332,23.3903]
[1646985474320,18.2118,82.39,82.332,23.3903]
[1646985474918,61.13242083,82.399,82.332,23.3903]
[1646985475119,61.13242083,82.399,82.333,6.0]
[1646985475519,61.13242083,82.399,82.332,23.3903]
[1646985480529,61.13242083,82.399,82.333,6.0]
[1646985480931,61.13242083,82.399,82.332,23.3903]
[1646985481532,24.2669,82.398,82.332,23.3903]
[1646985505785,18.2119,82.39,82.332,23.3903]
[1646985505986,24.2669,82.398,82.332,23.3903]
[1646985507590,24.2669,82.398,82.333,19.67681929]
[1646985507889,24.2669,82.398,82.333,13.67681929]
[1646985508093,24.2669,82.398,82.334,13.67681929]
[1646985508488,24.2669,82.398,82.333,13.67681929]
[1646985508690,24.2669,82.398,82.334,6.0]
[1646985508994,24.2669,82.398,82.333,13.67681929]
[1646985509590,24.2669,82.398,82.334,6.0]
[1646985509791,24.2669,82.398,82.333,13.67681929]
[1646985520228,18.2141,82.38,82.333,13.67681929]
[1646985520429,60.19965246,82.379,82.333,13.67681929]
[1646985525034,60.19965246,82.379,82.332,23.3903]
[1646985529041,18.2164,82.37,82.332,23.3903]
[1646985529638,18.2164,82.37,82.273,61.02]
[1646985529839,18.2164,82.37,82.274,81.44570477]
[1646985530039,18.2164,82.37,82.276,31.70946898]
[1646985530239,18.2164,82.37,82.29,121.4]
[1646985530441,18.2184,82.36,82.296,23.6702]
[1646985530642,69.2387373,82.359,82.296,37.38645752]
[1646985531042,69.2387373,82.359,82.297,13.71625752]
[1646985532242,69.2387373,82.359,82.275,13.71625752]
[1646985532243,14.54,82.35,82.275,13.71625752]
[1646985532443,22.8393,82.349,82.276,23.6702]
[1646985533043,54.50211458,82.329,82.276,23.6702]
[1646985533242,77.34141458,82.329,82.276,23.6702]
[1646985534546,18.2272,82.32,82.276,23.6702]
[1646985535743,60.0,82.319,82.262,24.1271]
[1646985535947,23.0864,82.318,82.262,24.1271]
[1646985536143,53.32523779,82.318,82.262,24.1271]
[1646985536451,58.77215806,82.316,82.262,24.1271]
[1646985536842,31.13252342,82.315,82.262,24.1271]
[1646985537546,52.9517982,82.299,82.262,24.1271]
[1646985539345,52.9517982,82.299,82.231,23.8614]
[1646985539546,26.47447957,82.298,82.202,121.4]
[1646985539746,26.47447957,82.298,82.203,6.0]
[1646985540149,26.47447957,82.298,82.205,121.4]
[1646985540345,29.55431796,82.297,82.206,6.0]
[1646985540544,29.55431796,82.297,82.207,121.4]
[1646985540744,18.2362,82.28,82.208,6.0]
[1646985540945,51.03091894,82.278,82.209,121.4]
[1646985541146,51.03091894,82.278,82.21,6.0]
[1646985541347,51.03091894,82.278,82.211,121.4]
[1646985541547,51.03091894,82.278,82.212,28.7069]
[1646985541744,51.03091894,82.278,82.212,42.34441225]
[1646985542146,51.03091894,82.278,82.213,13.63751225]
[1646985542348,3.04447957,82.277,82.213,13.63751225]
[1646985542558,3.04447957,82.277,82.212,28.7069]
[1646985544354,30.58261979,82.276,82.212,28.7069]
[1646985544755,3.04447957,82.275,82.212,28.7069]
[1646985544956,35.65033632,82.275,82.212,22.7069]
[1646985545159,63.18847654,82.274,82.212,22.7069]
[1646985545359,66.23295611,82.274,82.212,22.7069]
[1646985545560,64.75962278,82.273,82.18,18.2424]
[1646985545758,64.75962278,82.273,82.182,23.0995]
[1646985545958,18.246,82.26,82.182,23.0995]
[1646985546157,51.97691226,82.259,82.182,23.0995]
[1646985546357,55.02139183,82.259,82.182,23.0995]
[1646985546557,3.04447957,82.258,82.182,23.0995]
[1646985546962,34.17700299,82.258,82.182,23.0995]
[1646985547260,32.60585675,82.257,82.182,23.0995]
[1646985547459,35.65033632,82.257,82.182,23.0995]
[1646985547665,18.2463,82.25,82.182,23.0995]
[1646985548063,3.04447957,82.249,82.182,23.0995]
[1646985550463,32.60585675,82.248,82.182,23.0995]
[1646985551268,63.18847654,82.248,82.182,23.0995]
[1646985551684,18.2484,82.24,82.182,23.0995]
[1646985551884,53.49030255,82.239,82.182,23.0995]
[1646985552085,119.72325866,82.239,82.182,23.0995]
[1646985552387,33.62657936,82.238,82.172,24.5147]
[1646985552588,18.2506,82.23,82.172,24.5147]
[1646985552788,53.49030255,82.239,82.172,24.5147]
[1646985552789,33.62657936,82.237,82.172,24.5147]
[1646985552987,34.17700299,82.229,82.172,24.5147]
[1646985553287,30.58209979,82.228,82.161,24.1695]
[1646985553486,60.0,82.227,82.162,6.0]
[1646985553686,64.46244991,82.226,82.162,6.0]
[1646985553892,18.2553,82.21,82.162,6.0]
[1646985554186,53.9067787,82.209,82.162,6.0]
[1646985563999,53.9067787,82.209,82.161,24.1695]
[1646985564200,53.9067787,82.209,82.145,23.2237]
[1646985564201,3.04447957,82.208,82.145,23.2237]
[1646985564806,29.56762321,82.207,82.126,24.1424]
[1646985565003,54.53722321,82.207,82.126,24.1424]
[1646985565203,49.35564236,82.189,82.126,24.1424]
[1646985566207,3.04447957,82.188,82.126,24.1424]
[1646985566810,49.35564236,82.189,82.126,24.1424]
[1646985571513,18.2617,82.18,82.112,22.6248]
[1646985571711,23.2114,82.179,82.113,22.5033]
[1646985571913,26.25587957,82.179,82.113,22.5033]
[1646985572112,3.04447957,82.178,82.113,22.5033]
[1646985572514,23.2114,82.179,82.113,22.5033]
[1646985573920,3.04447957,82.178,82.113,22.5033]
[1646985576715,18.2641,82.17,82.113,22.5033]
[1646985576917,52.75244875,82.169,82.113,22.5033]
[1646985577515,52.75244875,82.169,82.114,127.4]
[1646985577940,52.75244875,82.169,82.12,18.2568]
[1646985578244,52.75244875,82.169,82.121,6.0]
[1646985578843,52.75244875,82.169,82.115,6.0]
[1646985579240,52.75244875,82.169,82.121,121.4]
[1646985579443,52.75244875,82.169,82.122,6.04366122]
[1646985579644,52.75244875,82.169,82.124,121.4]
[1646985580044,20.84486316,82.201,82.124,121.4]
[1646985580243,20.84486316,82.201,82.13,18.2544]
[1646985580442,20.84486316,82.201,82.131,121.4]
[1646985581046,61.19174408,82.2,82.131,121.4]
[1646985583347,61.19174408,82.2,82.141,121.4]
[1646985583549,1.65559992,82.265,82.143,121.4]
[1646985583747,6.31295125,82.268,82.144,6.0]
[1646985583748,38.08277792,82.268,82.144,6.0]
[1646985583948,57.6245253,82.264,82.144,22.35804602]
[1646985584146,57.6245253,82.264,82.145,145.09614527]
[1646985584348,58.71002291,82.263,82.147,121.4]
[1646985584548,65.5127506,82.262,82.148,6.0]
[1646985584748,101.05047351,82.262,82.148,6.0]
[1646985584948,35.53772291,82.261,82.149,124.44447957]
[1646985585149,18.2456,82.25,82.151,121.4]
[1646985585448,54.29294226,82.249,82.152,6.0]
[1646985585650,23.1723,82.248,82.154,121.4]
[1646985585848,23.1723,82.248,82.155,6.0]
[1646985586749,23.1723,82.248,82.156,3.04447957]
[1646985586950,23.1723,82.248,82.157,6.0]
[1646985587150,18.2479,82.24,82.16,139.6465]
[1646985587351,18.2479,82.24,82.161,6.0]
[1646985589352,54.29294226,82.249,82.162,3.04447957]
[1646985589552,54.29294226,82.249,82.165,72.86]
[1646985589753,1.65559992,82.291,82.17,18.2337]
[1646985589954,1.65559992,82.292,82.173,72.86]
[1646985590154,12.70321343,82.303,82.18,121.4]
[1646985590353,12.70321343,82.303,82.19,121.4]
[1646985590652,57.17971731,82.302,82.191,6.0]
[1646985590851,57.17971731,82.302,82.192,121.65]
[1646985591052,57.17971731,82.302,82.193,6.0]
[1646985591255,57.17971731,82.302,82.197,60.76]
[1646985591452,57.17971731,82.302,82.2,121.4]
[1646985591651,57.17971731,82.302,82.206,121.4]
[1646985591852,18.2336,82.3,82.208,182.16]
[1646985592055,18.2336,82.3,82.21,121.4]
[1646985592252,18.2336,82.3,82.211,6.0]
[1646985593860,45.07988988,82.3,82.21,139.6332]
[1646985594456,45.07988988,82.3,82.211,6.0]
[1646985595556,18.2336,82.3,82.211,6.0]
[1646985595755,57.17971731,82.302,82.211,6.0]
[1646985595756,57.17971731,82.302,82.212,3.04447957]
[1646985595958,57.17971731,82.302,82.213,6.0]
[1646985596462,57.17971731,82.302,82.214,3.04447957]
[1646985596657,57.17971731,82.302,82.215,6.0]
[1646985597059,57.17971731,82.302,82.218,121.4]
[1646985597258,57.17971731,82.302,82.226,60.76]
[1646985597458,57.17971731,82.302,82.23,182.16]
[1646985597659,57.17971731,82.302,82.231,6.0]
[1646985598062,57.17971731,82.302,82.234,121.4]
[1646985598259,57.17971731,82.302,82.238,121.4]
[1646985598460,57.17971731,82.302,82.239,6.0]
[1646985598664,57.17971731,82.302,82.241,121.4]
[1646985598862,57.17971731,82.302,82.242,6.0]
[1646985610087,3.04447957,82.301,82.241,121.4]
[1646985611285,57.17971731,82.302,82.241,121.4]
[1646985613201,3.04447957,82.301,82.241,121.4]
[1646985613402,57.17971731,82.302,82.241,121.4]
[1646985617305,60.22419688,82.302,82.241,121.4]
[1646985617505,57.17971731,82.302,82.241,121.4]
[1646985618206,21.46577736,82.301,82.24,23.2438]
[1646985619005,45.48917736,82.301,82.24,23.2438]
[1646985619204,18.2324,82.3,82.24,23.2438]
[1646985619906,45.48917736,82.301,82.24,23.2438]
[1646985620615,61.2645253,82.3,82.21,18.2349]
[1646985620810,61.2645253,82.3,82.212,121.4]
[1646985621008,54.06401278,82.299,82.212,121.4]
[1646985621207,15.849467,82.28,82.211,23.6075]
[1646985621406,44.92758044,82.279,82.211,23.6075]
[1646985621609,47.97206001,82.279,82.211,23.6075]
[1646985622023,44.92758044,82.279,82.211,23.6075]
[1646985622210,18.2434,82.26,82.185,121.4]
[1646985622409,18.2434,82.26,82.187,121.4]
[1646985622612,62.3839272,82.259,82.186,24.924]
[1646985622809,91.05021708,82.259,82.186,24.924]
[1646985623008,61.2645253,82.258,82.186,24.924]